[Event "Titled Tuesday Blitz March 07 Late 2023"]
[White "Ardila, Oscar Humberto"]
[Black "Ward, Ieuan C"]
[WhiteFideId "4404742"]
[BlackFideId "406627"]
[WhiteElo "1911"]
[BlackElo "2335"]
[Result "1-0"]
[Round "06"]
[TimeControl "180+2"]
[Date "2023.03.07"]
[WhiteClock "0:00:20"]
[BlackClock "0:00:03"]

1. d4 {[%clk 0:03:00]}  Nf6 {[%clk 0:02:59]} 2. c4 {[%clk 0:03:00]}  e6 {[%clk 0:02:59]} 3. Nc3 {[%clk 0:03:00]}  Bb4 {[%clk 0:02:58]} 4. Qc2 {[%clk 0:02:59]}  d5 {[%clk 0:02:58]} 5. Bg5 {[%clk 0:02:58]}  h6 {[%clk 0:02:54]} 6. Bxf6 {[%clk 0:02:51]}  Qxf6 {[%clk 0:02:54]} 7. Nf3 {[%clk 0:02:51]}  O-O {[%clk 0:02:52]} 8. e3 {[%clk 0:02:50]}  c5 {[%clk 0:02:52]} 9. a3 {[%clk 0:02:50]}  Bxc3+ {[%clk 0:02:51]} 10. bxc3 {[%clk 0:02:50]}  Nc6 {[%clk 0:02:37]} 11. Be2 {[%clk 0:02:37]}  b6 {[%clk 0:02:28]} 12. O-O {[%clk 0:02:34]}  Ba6 {[%clk 0:02:24]} 13. cxd5 {[%clk 0:02:33]}  Bxe2 {[%clk 0:02:24]} 14. Qxe2 {[%clk 0:02:32]}  exd5 {[%clk 0:02:23]} 15. Qb5 {[%clk 0:02:23]}  cxd4 {[%clk 0:02:13]} 16. cxd4 {[%clk 0:02:19]}  Rfd8 {[%clk 0:02:12]} 17. Rfc1 {[%clk 0:02:11]}  Rac8 {[%clk 0:02:08]} 18. Qa6 {[%clk 0:01:56]}  Qe7 {[%clk 0:02:01]} 19. Rc3 {[%clk 0:01:53]}  Qd7 {[%clk 0:01:15]} 20. Rac1 {[%clk 0:01:38]}  Ne7 {[%clk 0:01:06]} 21. Ne5 {[%clk 0:01:31]}  Rxc3 {[%clk 0:01:04]} 22. Rxc3 {[%clk 0:01:29]}  Qf5 {[%clk 0:01:00]} 23. h3 {[%clk 0:01:23]}  f6 {[%clk 0:01:00]} 24. Qxa7 {[%clk 0:01:10]}  fxe5 {[%clk 0:00:52]} 25. Qxe7 {[%clk 0:01:09]}  Rf8 {[%clk 0:00:52]} 26. Qh4 {[%clk 0:01:07]}  exd4 {[%clk 0:00:39]} 27. exd4 {[%clk 0:01:06]}  g5 {[%clk 0:00:26]} 28. Qg3 {[%clk 0:01:05]}  Qb1+ {[%clk 0:00:27]} 29. Kh2 {[%clk 0:01:04]}  Qb2 {[%clk 0:00:22]} 30. Rb3 {[%clk 0:00:51]}  Qxd4 {[%clk 0:00:21]} 31. Rd3 {[%clk 0:00:49]}  Qxf2 {[%clk 0:00:14]} 32. Qxf2 {[%clk 0:00:48]}  Rxf2 {[%clk 0:00:15]} 33. Rxd5 {[%clk 0:00:48]}  Rf6 {[%clk 0:00:13]} 34. Kg3 {[%clk 0:00:47]}  Kf7 {[%clk 0:00:12]} 35. Kg4 {[%clk 0:00:47]}  Ke6 {[%clk 0:00:12]} 36. Rb5 {[%clk 0:00:46]}  Kf7 {[%clk 0:00:13]} 37. Kh5 {[%clk 0:00:46]}  Kg7 {[%clk 0:00:13]} 38. g3 {[%clk 0:00:39]}  Rc6 {[%clk 0:00:12]} 39. a4 {[%clk 0:00:36]}  Rc4 {[%clk 0:00:07]} 40. Rxb6 {[%clk 0:00:35]}  Rxa4 {[%clk 0:00:06]} 41. Rb7+ {[%clk 0:00:35]}  Kf6 {[%clk 0:00:06]} 42. Kxh6 {[%clk 0:00:30]}  Ra3 {[%clk 0:00:06]} 43. Rb6+ {[%clk 0:00:29]}  Ke5 {[%clk 0:00:06]} 44. Rb5+ {[%clk 0:00:29]}  Kf6 {[%clk 0:00:06]} 45. Rb6+ {[%clk 0:00:26]}  Ke5 {[%clk 0:00:05]} 46. Kxg5 {[%clk 0:00:25]}  Rxg3+ {[%clk 0:00:05]} 47. Kh4 {[%clk 0:00:25]}  Rg1 {[%clk 0:00:05]} 48. Rb8 {[%clk 0:00:23]}  Kf5 {[%clk 0:00:05]} 49. Rf8+ {[%clk 0:00:22]}  Ke6 {[%clk 0:00:04]} 50. Rf4 {[%clk 0:00:21]}  Ke5 {[%clk 0:00:04]} 51. Rf7 {[%clk 0:00:20]}  Ke6 {[%clk 0:00:04]} 52. Rf3 {[%clk 0:00:20]}  Rg8 {[%clk 0:00:02]} 53. Kh5 {[%clk 0:00:19]}  Rh8+ {[%clk 0:00:03]} 54. Kg4 {[%clk 0:00:20]}  Rg8+ {[%clk 0:00:03]} 55. Kh4 {[%clk 0:00:20]}  Rh8+ {[%clk 0:00:03]} 56. Kg3 {[%clk 0:00:20]}  Rg8+ {[%clk 0:00:04]} 57. Kh2 {[%clk 0:00:20]}  Ke5 {[%clk 0:00:03]} 58. h4 {[%clk 0:00:20]}  Ke4 {[%clk 0:00:04]} 59. Rf7 {[%clk 0:00:20]}  Ke5 {[%clk 0:00:02]} 60. Kh3 {[%clk 0:00:20]}  Ke6 {[%clk 0:00:03]} 61. Rf2 {[%clk 0:00:20]}  Rg1 {[%clk 0:00:03]} 62. h5 {[%clk 0:00:20]}  Ke7 {[%clk 0:00:03]} 63. Kh4 {[%clk 0:00:20]} 1-0


[Site "https://www.chess.com"]

[Event "Titled Tuesday Blitz March 07 Late 2023"]
[White "Grycel, Kamil"]
[Black "olga-belka"]
[WhiteFideId "1115499"]
[WhiteElo "2483"]
[BlackElo "2220"]
[Result "0-1"]
[Round "06"]
[TimeControl "180+2"]
[Date "2023.03.07"]
[WhiteClock "0:00:12"]
[BlackClock "0:00:02"]

1. b3 {[%clk 0:02:57]}  e5 {[%clk 0:02:58]} 2. Bb2 {[%clk 0:02:57]}  Nc6 {[%clk 0:02:58]} 3. Nf3 {[%clk 0:02:57]}  d6 {[%clk 0:02:57]} 4. d4 {[%clk 0:02:56]}  exd4 {[%clk 0:02:54]} 5. Nxd4 {[%clk 0:02:56]}  Nxd4 {[%clk 0:02:52]} 6. Qxd4 {[%clk 0:02:57]}  Nf6 {[%clk 0:02:51]} 7. Nc3 {[%clk 0:02:53]}  Be7 {[%clk 0:02:51]} 8. e4 {[%clk 0:02:48]}  O-O {[%clk 0:02:50]} 9. O-O-O {[%clk 0:02:43]}  Be6 {[%clk 0:02:49]} 10. f4 {[%clk 0:02:36]}  Re8 {[%clk 0:02:47]} 11. f5 {[%clk 0:02:19]}  Bd7 {[%clk 0:02:42]} 12. Bd3 {[%clk 0:02:08]}  Bf8 {[%clk 0:02:35]} 13. g4 {[%clk 0:02:01]}  Nxg4 {[%clk 0:02:25]} 14. Rhg1 {[%clk 0:01:59]}  Qh4 {[%clk 0:02:13]} 15. Rxg4 {[%clk 0:01:41]}  Qxg4 {[%clk 0:02:12]} 16. Rg1 {[%clk 0:01:40]}  Qf4+ {[%clk 0:02:10]} 17. Kb1 {[%clk 0:01:40]}  c5 {[%clk 0:02:06]} 18. Qc4 {[%clk 0:00:51]}  Qe3 {[%clk 0:01:44]} 19. Rf1 {[%clk 0:00:34]}  Qd4 {[%clk 0:01:36]} 20. Qxd4 {[%clk 0:00:27]}  cxd4 {[%clk 0:01:36]} 21. Ne2 {[%clk 0:00:28]}  Bc6 {[%clk 0:01:30]} 22. Ng3 {[%clk 0:00:20]}  d5 {[%clk 0:01:21]} 23. e5 {[%clk 0:00:21]}  Rxe5 {[%clk 0:01:19]} 24. Bxd4 {[%clk 0:00:21]}  Ree8 {[%clk 0:01:15]} 25. Nh5 {[%clk 0:00:22]}  f6 {[%clk 0:00:54]} 26. Rg1 {[%clk 0:00:21]}  Kf7 {[%clk 0:00:53]} 27. Kb2 {[%clk 0:00:21]}  a6 {[%clk 0:00:44]} 28. Nf4 {[%clk 0:00:20]}  Bb5 {[%clk 0:00:41]} 29. Ne6 {[%clk 0:00:12]}  Bxd3 {[%clk 0:00:39]} 30. cxd3 {[%clk 0:00:13]}  Rac8 {[%clk 0:00:37]} 31. a4 {[%clk 0:00:13]}  g6 {[%clk 0:00:30]} 32. Nf4 {[%clk 0:00:11]}  gxf5 {[%clk 0:00:27]} 33. Rg2 {[%clk 0:00:10]}  Bd6 {[%clk 0:00:21]} 34. Nh5 {[%clk 0:00:10]}  Be5 {[%clk 0:00:20]} 35. Bxe5 {[%clk 0:00:11]}  fxe5 {[%clk 0:00:18]} 36. Rg7+ {[%clk 0:00:11]}  Kf8 {[%clk 0:00:16]} 37. Rxh7 {[%clk 0:00:11]}  e4 {[%clk 0:00:12]} 38. Nf6 {[%clk 0:00:09]}  Red8 {[%clk 0:00:07]} 39. d4 {[%clk 0:00:08]}  Rc6 {[%clk 0:00:05]} 40. Nh5 {[%clk 0:00:06]}  e3 {[%clk 0:00:01]} 41. Nf4 {[%clk 0:00:07]}  Ke8 {[%clk 0:00:01]} 42. Rh8+ {[%clk 0:00:08]}  Ke7 {[%clk 0:00:01]} 43. Rh7+ {[%clk 0:00:09]}  Kf6 {[%clk 0:00:01]} 44. Rh6+ {[%clk 0:00:09]}  Kg5 {[%clk 0:00:01]} 45. Rh4 {[%clk 0:00:07]}  Kxh4 {[%clk 0:00:01]} 46. Ng2+ {[%clk 0:00:07]}  Kh3 {[%clk 0:00:01]} 47. Nxe3 {[%clk 0:00:08]}  Kxh2 {[%clk 0:00:01]} 48. Nxd5 {[%clk 0:00:09]}  Rxd5 {[%clk 0:00:01]} 49. b4 {[%clk 0:00:09]}  Rxd4 {[%clk 0:00:01]} 50. b5 {[%clk 0:00:10]}  axb5 {[%clk 0:00:01]} 51. axb5 {[%clk 0:00:10]}  Rb4+ {[%clk 0:00:02]} 52. Ka3 {[%clk 0:00:11]}  Rxb5 {[%clk 0:00:02]} 53. Ka4 {[%clk 0:00:11]}  Rb1 {[%clk 0:00:02]} 54. Ka3 {[%clk 0:00:12]}  Ra6# {[%clk 0:00:02]} 0-1


[Site "https://www.chess.com"]

[Event "Titled Tuesday Blitz March 07 Late 2023"]
[White "Estrada Nieto, Julian"]
[Black "Hartikainen, Jarmo"]
[WhiteFideId "5101018"]
[BlackFideId "503134"]
[WhiteElo "2176"]
[BlackElo "2196"]
[Result "1-0"]
[Round "06"]
[TimeControl "180+2"]
[Date "2023.03.07"]
[WhiteClock "0:01:13"]
[BlackClock "0:00:04"]

1. e4 {[%clk 0:03:00]}  c5 {[%clk 0:02:58]} 2. Nf3 {[%clk 0:03:01]}  Nc6 {[%clk 0:02:58]} 3. Bb5 {[%clk 0:03:00]}  g6 {[%clk 0:02:58]} 4. Bxc6 {[%clk 0:03:00]}  dxc6 {[%clk 0:02:59]} 5. d3 {[%clk 0:03:01]}  Bg4 {[%clk 0:02:58]} 6. h3 {[%clk 0:03:01]}  Bxf3 {[%clk 0:02:58]} 7. Qxf3 {[%clk 0:03:02]}  Bg7 {[%clk 0:02:59]} 8. Nc3 {[%clk 0:03:02]}  e5 {[%clk 0:02:57]} 9. Be3 {[%clk 0:03:02]}  Qe7 {[%clk 0:02:50]} 10. Qg3 {[%clk 0:03:00]}  O-O-O {[%clk 0:02:30]} 11. O-O-O {[%clk 0:02:56]}  b6 {[%clk 0:02:19]} 12. f3 {[%clk 0:02:54]}  Qe6 {[%clk 0:02:10]} 13. Qg4 {[%clk 0:02:50]}  Qxg4 {[%clk 0:02:04]} 14. hxg4 {[%clk 0:02:50]}  h5 {[%clk 0:01:44]} 15. gxh5 {[%clk 0:02:49]}  Rxh5 {[%clk 0:01:39]} 16. Rxh5 {[%clk 0:02:48]}  gxh5 {[%clk 0:01:40]} 17. Rh1 {[%clk 0:02:48]}  Nf6 {[%clk 0:01:40]} 18. Bg5 {[%clk 0:02:48]}  Rh8 {[%clk 0:01:39]} 19. Bxf6 {[%clk 0:02:45]}  Bxf6 {[%clk 0:01:37]} 20. Kd1 {[%clk 0:02:45]}  h4 {[%clk 0:01:30]} 21. Ke2 {[%clk 0:02:44]}  Kd7 {[%clk 0:01:28]} 22. Nd1 {[%clk 0:02:43]}  Ke6 {[%clk 0:01:24]} 23. Ne3 {[%clk 0:02:43]}  b5 {[%clk 0:01:09]} 24. Nf5 {[%clk 0:02:40]}  a5 {[%clk 0:01:03]} 25. b3 {[%clk 0:02:32]}  b4 {[%clk 0:00:37]} 26. Kf2 {[%clk 0:02:29]}  a4 {[%clk 0:00:30]} 27. Ne3 {[%clk 0:02:09]}  Ra8 {[%clk 0:00:25]} 28. Ke2 {[%clk 0:02:04]}  axb3 {[%clk 0:00:25]} 29. axb3 {[%clk 0:02:04]}  Ra2 {[%clk 0:00:19]} 30. Rc1 {[%clk 0:01:52]}  Bg5 {[%clk 0:00:18]} 31. Kd2 {[%clk 0:01:43]}  Ra8 {[%clk 0:00:14]} 32. Rb1 {[%clk 0:01:36]}  Ra2 {[%clk 0:00:11]} 33. Rc1 {[%clk 0:01:30]}  f6 {[%clk 0:00:11]} 34. Ke2 {[%clk 0:01:30]}  Ra8 {[%clk 0:00:09]} 35. Rd1 {[%clk 0:01:27]}  Ra2 {[%clk 0:00:09]} 36. Rd2 {[%clk 0:01:27]}  Rb2 {[%clk 0:00:09]} 37. Nc4 {[%clk 0:01:24]}  Rb1 {[%clk 0:00:07]} 38. Rd1 {[%clk 0:01:24]}  Rxd1 {[%clk 0:00:07]} 39. Kxd1 {[%clk 0:01:24]}  f5 {[%clk 0:00:07]} 40. Ke2 {[%clk 0:01:24]}  f4 {[%clk 0:00:06]} 41. Na5 {[%clk 0:01:18]}  Kd7 {[%clk 0:00:05]} 42. Nb7 {[%clk 0:01:17]}  Be7 {[%clk 0:00:04]} 43. Kd2 {[%clk 0:01:13]}  Kc7 {[%clk 0:00:04]} 44. Na5 {[%clk 0:01:13]}  Kd7 {[%clk 0:00:02]} 45. Nc4 {[%clk 0:01:13]}  Bf6 {[%clk 0:00:02]} 46. Ke2 {[%clk 0:01:12]}  Kc7 {[%clk 0:00:02]} 47. Kf2 {[%clk 0:01:12]}  Kd7 {[%clk 0:00:02]} 48. Kg1 {[%clk 0:01:12]}  Kc7 {[%clk 0:00:02]} 49. Kh2 {[%clk 0:01:13]}  Kd7 {[%clk 0:00:03]} 50. Kh3 {[%clk 0:01:13]}  Kc7 {[%clk 0:00:03]} 51. Kg4 {[%clk 0:01:14]}  Kd7 {[%clk 0:00:04]} 52. Kf5 {[%clk 0:01:13]} 1-0


[Site "https://www.chess.com"]

[Event "Titled Tuesday Blitz March 07 Late 2023"]
[White "Sailer, Mike"]
[Black "Pino Perez, Lazaro"]
[WhiteFideId "2012901"]
[BlackFideId "3517055"]
[WhiteElo "2109"]
[BlackElo "2170"]
[Result "0-1"]
[Round "06"]
[TimeControl "180+2"]
[Date "2023.03.07"]
[WhiteClock "0:00:27"]
[BlackClock "0:00:13"]

1. d4 {[%clk 0:03:00]}  d5 {[%clk 0:02:59]} 2. Bg5 {[%clk 0:02:58]}  h6 {[%clk 0:02:57]} 3. Bh4 {[%clk 0:02:55]}  c6 {[%clk 0:02:58]} 4. Nf3 {[%clk 0:02:53]}  Qb6 {[%clk 0:02:58]} 5. Nbd2 {[%clk 0:02:44]}  Qxb2 {[%clk 0:02:52]} 6. e3 {[%clk 0:02:43]}  Bf5 {[%clk 0:02:40]} 7. Rb1 {[%clk 0:02:36]}  Qxa2 {[%clk 0:02:39]} 8. Rxb7 {[%clk 0:02:35]}  Nd7 {[%clk 0:02:19]} 9. Bd3 {[%clk 0:02:30]}  Bxd3 {[%clk 0:02:14]} 10. cxd3 {[%clk 0:02:30]}  Ngf6 {[%clk 0:02:13]} 11. O-O {[%clk 0:02:29]}  e6 {[%clk 0:02:08]} 12. Bxf6 {[%clk 0:02:24]}  gxf6 {[%clk 0:02:03]} 13. Qc1 {[%clk 0:01:55]}  Qa6 {[%clk 0:01:47]} 14. Qb1 {[%clk 0:01:48]}  Rc8 {[%clk 0:01:30]} 15. e4 {[%clk 0:01:34]}  Nb6 {[%clk 0:01:28]} 16. Rxb6 {[%clk 0:01:19]}  axb6 {[%clk 0:01:29]} 17. exd5 {[%clk 0:01:15]}  cxd5 {[%clk 0:01:30]} 18. Re1 {[%clk 0:01:09]}  Bd6 {[%clk 0:01:28]} 19. Nf1 {[%clk 0:00:50]}  Rc3 {[%clk 0:00:58]} 20. Ne3 {[%clk 0:00:43]}  Kf8 {[%clk 0:00:41]} 21. Ng4 {[%clk 0:00:39]}  Be7 {[%clk 0:00:35]} 22. Re3 {[%clk 0:00:32]}  h5 {[%clk 0:00:19]} 23. Nge5 {[%clk 0:00:31]}  fxe5 {[%clk 0:00:19]} 24. Nxe5 {[%clk 0:00:32]}  Qa3 {[%clk 0:00:17]} 25. Re1 {[%clk 0:00:30]}  Bf6 {[%clk 0:00:15]} 26. Nd7+ {[%clk 0:00:28]}  Ke7 {[%clk 0:00:13]} 27. Nxf6 {[%clk 0:00:26]}  Kxf6 {[%clk 0:00:14]} 28. Qxb6 {[%clk 0:00:27]}  Rc1 {[%clk 0:00:13]} 0-1


[Site "https://www.chess.com"]

[Event "Titled Tuesday Blitz March 07 Late 2023"]
[White "Tyagi, Kushan"]
[Black "Cueto, Jonny"]
[WhiteFideId "2040069"]
[BlackFideId "3300145"]
[WhiteElo "2375"]
[BlackElo "2234"]
[Result "1-0"]
[Round "06"]
[TimeControl "180+2"]
[Date "2023.03.07"]
[WhiteClock "0:00:16"]
[BlackClock "0:00:12"]

1. d4 {[%clk 0:03:00]}  e6 {[%clk 0:02:59]} 2. c4 {[%clk 0:03:00]}  Nf6 {[%clk 0:02:58]} 3. g3 {[%clk 0:03:00]}  Be7 {[%clk 0:02:51]} 4. Nf3 {[%clk 0:02:59]}  b6 {[%clk 0:02:50]} 5. Bg2 {[%clk 0:02:59]}  Bb7 {[%clk 0:02:51]} 6. O-O {[%clk 0:02:58]}  O-O {[%clk 0:02:50]} 7. Nc3 {[%clk 0:02:55]}  Ne4 {[%clk 0:02:38]} 8. Qc2 {[%clk 0:02:46]}  Nxc3 {[%clk 0:02:37]} 9. Ng5 {[%clk 0:02:14]}  f5 {[%clk 0:02:37]} 10. Bxb7 {[%clk 0:02:12]}  Bxg5 {[%clk 0:01:29]} 11. Bxg5 {[%clk 0:01:58]}  Qxg5 {[%clk 0:01:28]} 12. Bxa8 {[%clk 0:01:58]}  Ne4 {[%clk 0:01:24]} 13. Bxe4 {[%clk 0:01:55]}  fxe4 {[%clk 0:01:25]} 14. Qxe4 {[%clk 0:01:55]}  Nc6 {[%clk 0:01:23]} 15. h4 {[%clk 0:01:49]}  Qa5 {[%clk 0:01:13]} 16. a3 {[%clk 0:01:47]}  Ne7 {[%clk 0:01:07]} 17. b4 {[%clk 0:01:42]}  Qh5 {[%clk 0:01:06]} 18. Kg2 {[%clk 0:01:40]}  Nf5 {[%clk 0:01:06]} 19. d5 {[%clk 0:01:25]}  exd5 {[%clk 0:00:55]} 20. Qxd5+ {[%clk 0:01:23]}  Kh8 {[%clk 0:00:55]} 21. Qxd7 {[%clk 0:01:06]}  Qg4 {[%clk 0:00:48]} 22. Kh2 {[%clk 0:00:54]}  g5 {[%clk 0:00:44]} 23. hxg5 {[%clk 0:00:37]}  Qxg5 {[%clk 0:00:43]} 24. Qd3 {[%clk 0:00:33]}  h5 {[%clk 0:00:35]} 25. Rad1 {[%clk 0:00:27]}  h4 {[%clk 0:00:34]} 26. Rh1 {[%clk 0:00:22]}  Kh7 {[%clk 0:00:15]} 27. Kg2 {[%clk 0:00:20]}  Kh6 {[%clk 0:00:13]} 28. Rh3 {[%clk 0:00:17]}  Kg6 {[%clk 0:00:12]} 29. Rdh1 {[%clk 0:00:16]}  hxg3 {[%clk 0:00:12]} 30. Rxg3 {[%clk 0:00:16]} 1-0


[Site "https://www.chess.com"]

[Event "Titled Tuesday Blitz March 07 Late 2023"]
[White "Davidson, Kevin"]
[Black "Sabar, Ethmane Daouda"]
[WhiteFideId "2056810"]
[BlackFideId "19600097"]
[WhiteElo "2151"]
[BlackElo "1950"]
[Result "1-0"]
[Round "06"]
[TimeControl "180+2"]
[Date "2023.03.07"]
[WhiteClock "0:00:06"]
[BlackClock "0:00:10"]

1. e4 {[%clk 0:03:00]}  c5 {[%clk 0:02:57]} 2. Nf3 {[%clk 0:03:00]}  Nc6 {[%clk 0:02:57]} 3. d4 {[%clk 0:03:00]}  cxd4 {[%clk 0:02:58]} 4. Nxd4 {[%clk 0:03:00]}  e5 {[%clk 0:02:59]} 5. Nb5 {[%clk 0:03:00]}  a6 {[%clk 0:02:59]} 6. Nd6+ {[%clk 0:03:00]}  Bxd6 {[%clk 0:03:00]} 7. Qxd6 {[%clk 0:03:00]}  Qf6 {[%clk 0:03:01]} 8. Qd1 {[%clk 0:03:00]}  Qg6 {[%clk 0:03:01]} 9. Nc3 {[%clk 0:03:01]}  Nge7 {[%clk 0:03:01]} 10. h4 {[%clk 0:02:57]}  h5 {[%clk 0:03:01]} 11. Bg5 {[%clk 0:02:54]}  O-O {[%clk 0:02:57]} 12. Be2 {[%clk 0:02:46]}  f5 {[%clk 0:02:08]} 13. Bxh5 {[%clk 0:02:39]}  Qe6 {[%clk 0:02:08]} 14. Bf3 {[%clk 0:01:46]}  Nd4 {[%clk 0:01:58]} 15. Bxe7 {[%clk 0:01:33]}  Qxe7 {[%clk 0:01:59]} 16. Nd5 {[%clk 0:01:33]}  Qf7 {[%clk 0:01:48]} 17. c3 {[%clk 0:01:22]}  fxe4 {[%clk 0:01:45]} 18. cxd4 {[%clk 0:01:12]}  exf3 {[%clk 0:01:44]} 19. Qxf3 {[%clk 0:01:07]}  Qe6 {[%clk 0:01:23]} 20. Qe4 {[%clk 0:01:03]}  exd4 {[%clk 0:01:12]} 21. f3 {[%clk 0:00:50]}  b5 {[%clk 0:00:52]} 22. O-O {[%clk 0:00:36]}  Bb7 {[%clk 0:00:41]} 23. Ne7+ {[%clk 0:00:33]}  Kf7 {[%clk 0:00:37]} 24. Qxb7 {[%clk 0:00:27]}  Qxe7 {[%clk 0:00:36]} 25. Rfe1 {[%clk 0:00:19]}  Qxh4 {[%clk 0:00:36]} 26. Qd5+ {[%clk 0:00:17]}  Kg6 {[%clk 0:00:30]} 27. Re4 {[%clk 0:00:14]}  Qf6 {[%clk 0:00:20]} 28. Rae1 {[%clk 0:00:10]}  Rac8 {[%clk 0:00:16]} 29. Rg4+ {[%clk 0:00:09]}  Kh7 {[%clk 0:00:16]} 30. Qh5+ {[%clk 0:00:08]}  Kg8 {[%clk 0:00:15]} 31. Rh4 {[%clk 0:00:08]}  d3 {[%clk 0:00:12]} 32. Qh8+ {[%clk 0:00:06]}  Kf7 {[%clk 0:00:13]} 33. Qh5+ {[%clk 0:00:07]}  Kg8 {[%clk 0:00:12]} 34. Qd5+ {[%clk 0:00:06]}  Qf7 {[%clk 0:00:11]} 35. Qxd3 {[%clk 0:00:06]}  Rce8 {[%clk 0:00:10]} 36. Qh7# {[%clk 0:00:06]} 1-0


[Site "https://www.chess.com"]

[Event "Titled Tuesday Blitz March 07 Late 2023"]
[White "Dorato, Adriano"]
[Black "Quinones Garcia, Santiago"]
[WhiteFideId "2802894"]
[BlackFideId "4408497"]
[WhiteElo "1709"]
[BlackElo "2263"]
[Result "0-1"]
[Round "06"]
[TimeControl "180+2"]
[Date "2023.03.07"]
[WhiteClock "0:00:02"]
[BlackClock "0:00:36"]

1. d4 {[%clk 0:02:57]}  Nf6 {[%clk 0:02:59]} 2. Nf3 {[%clk 0:02:56]}  g6 {[%clk 0:02:59]} 3. e3 {[%clk 0:02:56]}  Bg7 {[%clk 0:02:59]} 4. Be2 {[%clk 0:02:54]}  d6 {[%clk 0:03:00]} 5. O-O {[%clk 0:02:54]}  O-O {[%clk 0:03:00]} 6. b3 {[%clk 0:02:53]}  a5 {[%clk 0:02:59]} 7. Bb2 {[%clk 0:02:53]}  a4 {[%clk 0:02:59]} 8. c4 {[%clk 0:02:50]}  c6 {[%clk 0:02:59]} 9. Nbd2 {[%clk 0:02:47]}  Bf5 {[%clk 0:02:55]} 10. Re1 {[%clk 0:02:41]}  Nbd7 {[%clk 0:02:53]} 11. Nf1 {[%clk 0:02:41]}  Re8 {[%clk 0:02:51]} 12. Ng3 {[%clk 0:02:41]}  Bg4 {[%clk 0:02:51]} 13. h3 {[%clk 0:02:39]}  Bxf3 {[%clk 0:02:50]} 14. Bxf3 {[%clk 0:02:38]}  Qc7 {[%clk 0:02:51]} 15. Rc1 {[%clk 0:02:37]}  e5 {[%clk 0:02:50]} 16. e4 {[%clk 0:02:29]}  axb3 {[%clk 0:02:34]} 17. axb3 {[%clk 0:02:25]}  Ra2 {[%clk 0:02:34]} 18. Bc3 {[%clk 0:02:21]}  exd4 {[%clk 0:02:31]} 19. Bxd4 {[%clk 0:02:21]}  Ne5 {[%clk 0:02:32]} 20. Bxe5 {[%clk 0:02:15]}  Rxe5 {[%clk 0:02:27]} 21. Qd3 {[%clk 0:02:07]}  Nd7 {[%clk 0:02:26]} 22. Red1 {[%clk 0:02:03]}  Re6 {[%clk 0:02:10]} 23. Ne2 {[%clk 0:01:43]}  Nc5 {[%clk 0:02:02]} 24. Qe3 {[%clk 0:01:38]}  f5 {[%clk 0:02:02]} 25. Nd4 {[%clk 0:01:33]}  Re8 {[%clk 0:01:56]} 26. Re1 {[%clk 0:01:05]}  Nxe4 {[%clk 0:01:53]} 27. Qd3 {[%clk 0:00:49]}  Qb6 {[%clk 0:01:44]} 28. Rcd1 {[%clk 0:00:24]}  d5 {[%clk 0:01:33]} 29. cxd5 {[%clk 0:00:22]}  cxd5 {[%clk 0:01:33]} 30. Bxe4 {[%clk 0:00:22]}  fxe4 {[%clk 0:01:29]} 31. Qc3 {[%clk 0:00:18]}  Rf8 {[%clk 0:01:23]} 32. Rf1 {[%clk 0:00:16]}  Re2 {[%clk 0:01:17]} 33. Nxe2 {[%clk 0:00:09]}  Bxc3 {[%clk 0:01:17]} 34. Nxc3 {[%clk 0:00:10]}  Qxb3 {[%clk 0:01:15]} 35. Nxd5 {[%clk 0:00:10]}  Kf7 {[%clk 0:01:10]} 36. Ne3 {[%clk 0:00:09]}  Re8 {[%clk 0:01:07]} 37. Rd7+ {[%clk 0:00:09]}  Re7 {[%clk 0:01:07]} 38. Rd4 {[%clk 0:00:07]}  Qb6 {[%clk 0:00:54]} 39. Rfd1 {[%clk 0:00:07]}  Qe6 {[%clk 0:00:53]} 40. Nd5 {[%clk 0:00:06]}  Rd7 {[%clk 0:00:52]} 41. Nf4 {[%clk 0:00:03]}  Rxd4 {[%clk 0:00:50]} 42. Rxd4 {[%clk 0:00:03]}  Qe5 {[%clk 0:00:44]} 43. Ne2 {[%clk 0:00:03]}  b5 {[%clk 0:00:36]} 44. Rd7+ {[%clk 0:00:02]}  Kg8 {[%clk 0:00:36]} 0-1


[Site "https://www.chess.com"]

[Event "Titled Tuesday Blitz March 07 Late 2023"]
[White "Delgado Rosas, Fatima Alexandra"]
[Black "Curtis, John"]
[WhiteFideId "6603963"]
[BlackFideId "3200256"]
[WhiteElo "2319"]
[BlackElo "2203"]
[Result "1-0"]
[Round "06"]
[TimeControl "180+2"]
[Date "2023.03.07"]
[WhiteClock "0:01:06"]
[BlackClock "0:00:01"]

1. d4 {[%clk 0:03:00]}  Nf6 {[%clk 0:02:59]} 2. c4 {[%clk 0:03:00]}  c5 {[%clk 0:02:57]} 3. d5 {[%clk 0:02:54]}  b5 {[%clk 0:02:57]} 4. Nd2 {[%clk 0:02:51]}  e6 {[%clk 0:02:52]} 5. e4 {[%clk 0:02:51]}  bxc4 {[%clk 0:02:45]} 6. Bxc4 {[%clk 0:02:46]}  exd5 {[%clk 0:02:45]} 7. exd5 {[%clk 0:02:46]}  d6 {[%clk 0:02:46]} 8. Ngf3 {[%clk 0:02:45]}  Qe7+ {[%clk 0:02:41]} 9. Qe2 {[%clk 0:02:43]}  Qxe2+ {[%clk 0:02:40]} 10. Kxe2 {[%clk 0:02:42]}  Bb7 {[%clk 0:02:40]} 11. Rd1 {[%clk 0:02:29]}  Bxd5 {[%clk 0:02:38]} 12. Bxd5 {[%clk 0:02:26]}  Nxd5 {[%clk 0:02:38]} 13. Nc4 {[%clk 0:02:26]}  Nb4 {[%clk 0:02:33]} 14. Nxd6+ {[%clk 0:02:18]}  Bxd6 {[%clk 0:02:33]} 15. Rxd6 {[%clk 0:02:19]}  O-O {[%clk 0:02:22]} 16. Be3 {[%clk 0:02:18]}  Re8 {[%clk 0:02:15]} 17. a3 {[%clk 0:02:17]}  Nc2 {[%clk 0:01:58]} 18. Rc1 {[%clk 0:02:16]}  Nxe3 {[%clk 0:01:57]} 19. fxe3 {[%clk 0:02:17]}  a5 {[%clk 0:01:52]} 20. Rxc5 {[%clk 0:02:15]}  Ra7 {[%clk 0:01:52]} 21. Rcd5 {[%clk 0:02:09]}  Rb7 {[%clk 0:01:48]} 22. Rd8 {[%clk 0:02:04]}  Rxb2+ {[%clk 0:01:45]} 23. Kd3 {[%clk 0:02:03]}  Kf8 {[%clk 0:01:43]} 24. Kc3 {[%clk 0:02:03]}  Rxg2 {[%clk 0:01:32]} 25. Ne5 {[%clk 0:01:59]}  f6 {[%clk 0:01:10]} 26. Rxb8 {[%clk 0:01:52]}  Rxb8 {[%clk 0:01:08]} 27. Nd7+ {[%clk 0:01:52]}  Ke7 {[%clk 0:01:07]} 28. Nxb8 {[%clk 0:01:53]}  Rxh2 {[%clk 0:01:06]} 29. Nc6+ {[%clk 0:01:48]}  Ke6 {[%clk 0:01:03]} 30. Rxa5 {[%clk 0:01:48]}  h5 {[%clk 0:01:00]} 31. Nd4+ {[%clk 0:01:49]}  Kf7 {[%clk 0:00:56]} 32. Ra7+ {[%clk 0:01:50]}  Kg8 {[%clk 0:00:55]} 33. Nf5 {[%clk 0:01:48]}  g5 {[%clk 0:00:53]} 34. a4 {[%clk 0:01:48]}  Rf2 {[%clk 0:00:52]} 35. Ne7+ {[%clk 0:01:46]}  Kf7 {[%clk 0:00:50]} 36. Nd5+ {[%clk 0:01:47]}  Kg6 {[%clk 0:00:50]} 37. a5 {[%clk 0:01:46]}  h4 {[%clk 0:00:49]} 38. Ra8 {[%clk 0:01:47]}  Ra2 {[%clk 0:00:42]} 39. Nb4 {[%clk 0:01:44]}  Ra1 {[%clk 0:00:41]} 40. a6 {[%clk 0:01:44]}  h3 {[%clk 0:00:37]} 41. Rh8 {[%clk 0:01:44]}  g4 {[%clk 0:00:37]} 42. Kb2 {[%clk 0:01:43]}  Ra5 {[%clk 0:00:34]} 43. Kc3 {[%clk 0:01:41]}  Kf5 {[%clk 0:00:25]} 44. Kd3 {[%clk 0:01:41]}  Ra1 {[%clk 0:00:20]} 45. e4+ {[%clk 0:01:39]}  Kg5 {[%clk 0:00:17]} 46. Nd5 {[%clk 0:01:38]}  Rxa6 {[%clk 0:00:16]} 47. Rg8+ {[%clk 0:01:35]}  Kh4 {[%clk 0:00:15]} 48. Ke3 {[%clk 0:01:35]}  h2 {[%clk 0:00:14]} 49. Nf4 {[%clk 0:01:31]}  Kg3 {[%clk 0:00:13]} 50. Ne2+ {[%clk 0:01:30]}  Kh3 {[%clk 0:00:12]} 51. Rh8+ {[%clk 0:01:30]}  Kg2 {[%clk 0:00:12]} 52. Nf4+ {[%clk 0:01:30]}  Kg1 {[%clk 0:00:12]} 53. Ne2+ {[%clk 0:01:30]}  Kg2 {[%clk 0:00:12]} 54. Rh4 {[%clk 0:01:25]}  g3 {[%clk 0:00:12]} 55. Nf4+ {[%clk 0:01:24]}  Kf1 {[%clk 0:00:10]} 56. Rg4 {[%clk 0:01:07]}  h1=Q {[%clk 0:00:04]} 57. Nd3 {[%clk 0:01:06]}  Ra3 {[%clk 0:00:01]} 58. Rf4+ {[%clk 0:01:06]} 1-0


[Site "https://www.chess.com"]